[Event "Susha Chess Rapid Women 2022"]
[Site "Shusha"]
[Date "2022.09.23"]
[Round "6.1"]
[White "Beydullayeva, Govhar"]
[Black "Mammadzada, Gunay"]
[Result "1-0"]
[ECO "D16"]
[WhiteElo "2346"]
[BlackElo "2473"]
[Annotator "TA"]
[PlyCount "87"]
[EventDate "2022.09.21"]
[EventType "tourn"]
[EventCountry "AZE"]
[SourceTitle "playchess.com"]
[Source "ChessBase"]
[SourceQuality "1"]
[TimeControl "900+10"]

{[%evp 12,87,20,20,25,25,27,22,15,9,8,12,6,5,12,8,7,0,20,15,22,43,36,34,43,40,29,25,36,8,6,0,0,-9,-18,-184,-123,-143,-89,-139,108,114,147,170,142,166,314,304,281,283,281,251,230,217,311,86,279,224,229,206,389,0,0,0,0,-457,0,0,0,0,0,0,0,1,29969,29970,29969,10091]} 1. d4 {[%emt 0:00:02]} d5 {[%emt 0:00:01]} 2. c4 {[%emt 0:00:01]} c6 {[%emt 0:00:02]} 3. Nf3 {[%emt 0:00:02]} Nf6 {[%emt 0:00:02]} 4. Nc3 {[%emt 0:00:04]} dxc4 {[%emt 0:00:12]} 5. a4 {[%emt 0:00:01]} e6 {[%emt 0:00:03]} 6. e3 {[%emt 0:00:19]} c5 {[%emt 0:00:24]} 7. Bxc4 {[%emt 0:00:04]} cxd4 {[%emt 0:00:03] D16: Slav Defence: 5 a4: Lines with 5...Bg4 and 5...Na6.} 8. exd4 {[%emt 0:00:07]} Be7 {[%emt 0:00:13]} 9. O-O {[%emt 0:00:03]} O-O {[%emt 0:00:35] The position is equal.} 10. Qe2 {[%emt 0:00:18]} Nc6 {[%emt 0:00:02]} 11. Rd1 {[%emt 0:00:01]} Nb4 {[%emt 0:00:16] Prevents d5.} 12. Bg5 {[%emt 0:00:09]} h6 {[%emt 0:00:03]} 13. Bxf6 {[%emt 0:00:01]} Bxf6 {[%emt 0:00:01]} 14. Ne4 {[%emt 0:00:06]} b6 {[%emt 0:02:12]} 15. Ne5 {[%emt 0:00:06]} Bb7 {[%emt 0:00:38]} 16. Nxf6+ {[%emt 0:00:07]} Qxf6 {[%emt 0:00:02]} 17. Nd7 {[%emt 0:00:01]} Qg6 {[%emt 0:01:11][%csl Gb7][%cal Rg6g2]} 18. d5 $1 {[%emt 0:00:04] Ne5 is the strong threat. Active counter play!} Rfe8 {[%emt 0:00:57][%cal Re6d5]} 19. Ne5 {[%emt 0:00:19]} Qg5 {[%emt 0:00:14][%cal Re6d5] [#]} 20. h4 $146 {[%emt 0:00:07]} ({Predecessor:} 20. f4 Qxf4 21. dxe6 fxe6 22. Rd7 Bd5 23. Rf1 Qd4+ 24. Kh1 Rf8 25. Bxd5 Nxd5 26. Nf3 {½-½ (56) Bacrot,E (2711)-Kempinski,R (2625) Jerusalem 2015}) 20... Qxh4 {[%emt 0:03:20][%cal Re6d5]} 21. d6 {[%emt 0:00:02]} Nd5 {[%emt 0:01:13]} 22. Qf3 $36 {[%emt 0:03:32][%mdl 2048] White fights for an advantage.} Qf6 {[%emt 0:01:17]} 23. Qe4 {[%emt 0:03:09] [#]} (23. Bxd5 $11 exd5 24. Qxf6 gxf6 25. Ng4) 23... Red8 {[%emt 0:03:17]} (23... Nc3 $1 $19 {[%mdl 512]} 24. Qe3 (24. Qxb7 Nxd1) 24... Nxd1 25. Rxd1 Red8) 24. d7 {[%emt 0:01:08][%cal Rd1d5] [#]} Rab8 {[%emt 0:01:57]} (24... Nc3 $142 $1 {[%cal Rc3e4][%mdl 512]} 25. Qe3 (25. Qe1 Nxd1) 25... Nxd1 26. Rxd1 Qe7) 25. Rxd5 {[%emt 0:06:29] [#]} ({White should play} 25. Bxd5 exd5 26. Qd4) 25... exd5 $2 {[%emt 0:00:45]} (25... Bxd5 26. Bxd5 exd5 27. Qxd5 $16) (25... b5 $1 $17 {[%cal Rb5c4] stays on course.} 26. axb5 (26. Ng4 $2 Qxb2 27. Qd4 Qxd4 $19) 26... Bxd5 27. Bxd5 Rxb5 28. Nxf7 (28. Ng4 $2 Qxb2 29. Rd1 Rxd7 $19) 28... Kxf7) 26. Bxd5 $16 {[%emt 0:00:01] Really sharp!} Bxd5 {[%emt 0:00:18]} 27. Qxd5 {[%emt 0:00:01]} Qf5 {[%emt 0:00:05][%cal Od8d7]} 28. Rd1 {[%emt 0:00:31]} Qe6 {[%emt 0:00:14]} (28... Rb7 $142) 29. Qxe6 $18 {[%emt 0:01:56]} fxe6 {[%emt 0:00:01][%mdl 4096] Endgame KRR-KRN} 30. Nc6 $1 {[%emt 0:00:01][%csl LRa7,LRb8,LRd8]} Ra8 {[%emt 0:00:00]} 31. b4 {[%emt 0:00:02]} (31. Nxd8 Rxd8 32. Kf1 Kf7 $11) 31... Kf7 {[%emt 0:00:31]} 32. f4 {[%emt 0:00:07][%mdl 1024] White has strong compensation.} (32. Nxd8+ Rxd8 33. Rd3 Ke7 $15) 32... g5 {[%emt 0:00:08]} (32... Kf6 {was necessary.} 33. Kf2 (33. Nxd8 Rxd8 34. Rd3 e5 $15) 33... g5 34. fxg5+ (34. Nxd8 Rxd8 35. fxg5+ Kxg5 $11) 34... Kxg5) 33. g3 $2 {[%emt 0:00:01]} (33. Nxd8+ Rxd8 34. fxg5 hxg5 $15) (33. fxg5 $18 h5 34. Rd6 (34. Nxd8+ Rxd8 35. Kh2 Kg6 $14)) 33... Kf6 $2 {[%emt 0:00:04]} (33... gxf4 $16 {was called for.} 34. gxf4 Kf6) 34. Kf2 {[%emt 0:00:08]} (34. Nxd8 Rxd8 35. fxg5+ hxg5 $11) 34... h5 {[%emt 0:00:17][%cal Bh6h5,Bh5h4,Bh4h3][%mdl 32]} (34... gxf4 35. gxf4 (35. Nxd8 fxg3+ 36. Kxg3 Rxd8 $17) 35... h5 36. Kg3 $16 (36. Nxd8 Rxd8 37. Kg3 Ke7 $11)) 35. Kf3 {[%emt 0:00:39]} ({Stronger than} 35. Nxd8 Rxd8 36. fxg5+ Kxg5 $11) 35... Kf5 $2 {[%emt 0:00:08]} (35... g4+ $2 36. Ke4 $18) (35... gxf4 36. Kxf4 (36. Nxd8 Rxd8 37. Kxf4 Ke7 $16) 36... b5) 36. b5 $2 {[%emt 0:00:37]} ({Not} 36. Nxd8 g4+ 37. Ke3 Rxd8 $14) (36. Nd4+ $18 Kf6 37. fxg5+ Kxg5 38. Nc6) 36... gxf4 $11 {[%emt 0:00:12]} 37. gxf4 {[%emt 0:00:01] aiming for Rd6.} h4 {[%emt 0:00:01]} 38. Ne7+ {[%emt 0:00:42]} Kf6 {[%emt 0:00:02]} 39. Nc6 {[%emt 0:00:02] Hoping for Kg4.} Kf5 {[%emt 0:00:04]} 40. Rd4 {[%emt 0:00:24]} h3 $1 {[%emt 0:00:34]} 41. Kg3 {[%emt 0:00:01]} Rg8+ {[%emt 0:00:09]} 42. Kh2 {[%emt 0:00:19] White wants to mate with Ne7+.} Rad8 $2 {[%emt 0:00:07][%mdl 8192]} 43. Ne7+ {[%emt 0:00:05]} Kf6 {[%emt 0:00:11]} 44. Nxg8+ {[%emt 0:00:01] Weighted Error Value: White=0.47/Black=0.43} 1-0

[Event "Susha Chess Rapid Women 2022"]
[Site "Shusha"]
[Date "2022.09.23"]
[Round "6.2"]
[White "Zawadzka, Jolanta"]
[Black "Ozturk Orenli, Kubra"]
[Result "0-1"]
[ECO "C44"]
[WhiteElo "2401"]
[BlackElo "2319"]
[Annotator "TA"]
[PlyCount "114"]
[EventDate "2022.09.21"]
[EventType "tourn"]
[EventCountry "AZE"]
[SourceTitle "playchess.com"]
[Source "ChessBase"]
[SourceQuality "1"]
[TimeControl "900+10"]

{[%evp 11,114,1,57,66,107,103,109,99,122,122,138,88,184,9,20,0,0,-39,-28,-126,-134,-125,-66,-165,-148,-220,-222,-230,-234,-280,-272,-288,-257,-337,-328,-320,-262,-300,-208,-333,-257,-288,-251,-258,-164,-206,-159,-181,-102,-109,-106,-226,-236,-254,-266,-269,-260,-305,-243,-301,-209,-222,0,-311,-292,-372,-352,-449,-454,-588,-591,-29942,-12453,-6379,-2156,-6331,-6279,-29972,-1686,-29973,-29972,-29976,-29977,-29981,-29982,-29984,-29985,-29986,-29987,-29987,-29985,-29985,-29984,-29984,-29984,-29984,-29985,-29985,-29986,-29989,-29989,-29989,-29990,-29993,-29994]} 1. e4 {[%emt 0:00:02]} e5 {[%emt 0:00:01]} 2. Nf3 {[%emt 0:00:02]} Nc6 {[%emt 0:00:01]} 3. d4 {[%emt 0:00:02]} exd4 {[%emt 0:00:04]} 4. Nxd4 {[%emt 0:00:02]} Nf6 {[%emt 0:00:18]} 5. Nxc6 {[%emt 0:00:14]} bxc6 {[%emt 0:00:02]} 6. Bd3 {[%emt 0:00:02]} Bc5 {[%emt 0:01:21]} (6... d5 $11) 7. e5 $14 {[%emt 0:00:55] C45: Scotch Game.} Qe7 {[%emt 0:00:26]} 8. O-O {[%emt 0:00:28]} (8. Qe2 $6 Nd5 $11) 8... Nd5 {[%emt 0:00:02]} 9. a3 {[%emt 0:00:50] Prevents Nb4. White is better.} a5 {[%emt 0:01:20]} 10. c4 {[%emt 0:01:48]} Nb6 {[%emt 0:00:01]} 11. Nc3 {[%emt 0:00:03] [#]} (11. Nd2 $142) 11... Ba6 $146 {[%emt 0:02:23] [#]} (11... Bd4 $16) ({Predecessor:} 11... h6 12. Qf3 Ba6 13. Qg4 Qe6 14. Qxg7 O-O-O 15. Qf6 Bxc4 16. Qf3 Rhg8 {1-0 (72) Plenca,J (2421)-Krsnik Cohar,I (2313) Mali Losinj 2021}) 12. Qe2 $2 {[%emt 0:03:10]} ({Better is} 12. Ne4 $1 $18) 12... Bd4 $11 {[%emt 0:02:17]} 13. Bd2 {[%emt 0:01:10]} Qe6 {[%emt 0:04:26][%cal Ra6c4]} 14. Rac1 {[%emt 0:03:23]} Bxc4 {[%emt 0:01:11] Hoping for ...0-0.} 15. Ne4 {[%emt 0:00:19]} (15. Rfe1 $11) 15... Bxd3 $17 {[%emt 0:00:25]} 16. Qxd3 {[%emt 0:00:03]} Qd5 {[%emt 0:00:22]} (16... Qxe5 $6 17. Rfe1 Kd8 18. Nc3 $11) (16... Bxb2 $17 17. Rc5 O-O) 17. Rcd1 {[%emt 0:02:49]} (17. Qb1 $1 $15) 17... Bxe5 $19 {[%emt 0:00:46]} (17... Qxe5 18. b4 $16) 18. Qe2 {[%emt 0:01:34]} (18. Qb1 $17 {was called for.}) 18... Qb5 {[%emt 0:00:37]} 19. Qf3 {[%emt 0:00:11] [#]} O-O $1 {[%emt 0:00:29]} ({Inferior is} 19... Qxb2 20. Rb1 Qa2 21. Bf4 Bxf4 22. Qxf4 $17) 20. b4 {[%emt 0:00:15]} axb4 {[%emt 0:00:16]} 21. Bxb4 {[%emt 0:00:02]} d6 {[%emt 0:00:16]} 22. Qh3 {[%emt 0:00:31]} Qc4 {[%emt 0:00:41]} 23. Rfe1 {[%emt 0:00:35]} Nd5 {[%emt 0:00:22]} 24. Bd2 {[%emt 0:00:02]} Nf6 {[%emt 0:00:34]} 25. Ng5 {[%emt 0:00:13]} (25. Nxf6+ $142 Bxf6 26. Qd7) 25... Qg4 {[%emt 0:00:16]} 26. Qd3 {[%emt 0:00:04]} h6 {[%emt 0:00:10]} 27. Nf3 {[%emt 0:00:11]} Rfe8 {[%emt 0:00:11]} 28. Rb1 {[%emt 0:00:24]} Nd5 {[%emt 0:00:12]} 29. h3 {[%emt 0:00:15]} Nf4 {[%emt 0:00:14]} (29... Qa4 $19 30. Nxe5 Rxe5 31. Rxe5 dxe5) 30. Bxf4 $17 {[%emt 0:00:08]} Qxf4 {[%emt 0:00:01]} 31. Nxe5 {[%emt 0:00:05]} (31. Re3 $17) 31... Rxe5 $19 {[%emt 0:00:14]} ({And not} 31... dxe5 32. Rb4 Rad8 33. Qxd8 Rxd8 34. Rxf4 exf4 35. Rc1 $17) 32. Rxe5 {[%emt 0:00:01]} Qxe5 $17 {[%emt 0:00:01][%mdl 4096] Endgame KQR-KQR} ({Weaker is} 32... dxe5 33. Qc3 $17) 33. a4 {[%emt 0:00:12]} g6 {[%emt 0:00:11]} 34. Qc4 {[%emt 0:00:08]} Qd5 {[%emt 0:00:13]} 35. Qh4 {[%emt 0:00:11]} Qg5 {[%emt 0:00:19]} 36. Qc4 {[%emt 0:00:04]} Qd5 {[%emt 0:00:10]} (36... c5 $142 37. Qc3 Qf4) 37. Qh4 $1 $19 {[%emt 0:00:02]} Kg7 {[%emt 0:00:01]} 38. Qb4 {[%emt 0:00:02]} c5 {[%emt 0:00:16]} 39. Qc3+ {[%emt 0:00:12]} Qd4 {[%emt 0:00:02]} 40. Qf3 {[%emt 0:00:34]} Rxa4 {[%emt 0:00:03] aiming for ...Ra1.} 41. Qc6 {[%emt 0:00:02]} Ra1 {[%emt 0:00:11]} 42. Rxa1 {[%emt 0:00:01]} Qxa1+ {[%emt 0:00:01] KQ-KQ} 43. Kh2 {[%emt 0:00:02]} Qe5+ {[%emt 0:00:01]} 44. Kg1 {[%emt 0:00:01]} Qe1+ {[%emt 0:00:01]} 45. Kh2 {[%emt 0:00:01]} Qxf2 {[%emt 0:00:02] Black mates.} 46. Qxc7 {[%emt 0:00:02]} Qf4+ {[%emt 0:00:01]} 47. Kg1 {[%emt 0:00:01]} c4 {[%emt 0:00:01][%cal Bc5c4,Bc4c3][%mdl 32]} 48. Qc6 {[%emt 0:00:09]} Qd4+ {[%emt 0:00:05]} 49. Kh1 {[%emt 0:00:02]} c3 {[%emt 0:00:02]} 50. Kh2 {[%emt 0:00:08]} Qe5+ {[%emt 0:00:09]} 51. Kh1 {[%emt 0:00:01]} d5 {[%emt 0:00:01]} 52. Qc5 {[%emt 0:00:20]} h5 {[%emt 0:00:14][%cal Bh6h5,Bh5h4][%mdl 32]} 53. Kg1 {[%emt 0:00:17]} h4 {[%emt 0:00:11]} 54. Kh1 {[%emt 0:00:02]} Qf6 {[%emt 0:00:24]} 55. Qxd5 {[%emt 0:00:45]} Qf1+ {[%emt 0:00:05]} 56. Kh2 {[%emt 0:00:01]} Qf4+ {[%emt 0:00:02]} 57. Kh1 {[%emt 0:00:02]} c2 {[%emt 0:00:09] Weighted Error Value: White=0.61/Black=0.33} 0-1

[Event "Susha Chess Rapid Women 2022"]
[Site "Shusha"]
[Date "2022.09.23"]
[Round "6.3"]
[White "Efroimski, Marsel"]
[Black "Dzagnidze, Nana"]
[Result "0-1"]
[ECO "B23"]
[WhiteElo "2462"]
[BlackElo "2526"]
[Annotator "TA"]
[PlyCount "82"]
[EventDate "2022.09.21"]
[EventType "tourn"]
[EventCountry "AZE"]
[SourceTitle "playchess.com"]
[Source "ChessBase"]
[SourceQuality "1"]
[TimeControl "900+10"]

{[%evp 9,82,8,6,-8,-7,-7,-4,-10,0,0,-17,-29,-17,-22,-18,-187,-199,-190,-205,-204,-191,-206,-200,-251,-253,-242,-191,-335,-302,-303,-285,-372,-379,-372,-376,-358,-376,-627,-619,-633,-627,-597,-560,-662,-643,-783,-778,-731,-547,-600,-591,-591,-591,-573,-556,-591,-591,-643,-624,-643,-650,-627,-618,-891,-888,-926,-913,-2984,-2620,-2604,-2378,-5889,-5111,-12835,-11007]} 1. e4 {[%emt 0:00:01]} c5 {[%emt 0:00:03]} 2. Nc3 {[%emt 0:00:01]} e6 {[%emt 0:01:05]} 3. g3 {[%emt 0:00:02]} Nc6 {[%emt 0:00:28]} 4. Bg2 {[%emt 0:00:02]} g6 {[%emt 0:00:09]} 5. Nge2 {[%emt 0:00:09]} Bg7 {[%emt 0:00:05]} 6. h4 {[%emt 0:00:13] B24: Closed Sicilian: 3 g3 sidelines.} h6 {[%emt 0:02:45]} 7. d3 {[%emt 0:00:09]} d6 {[%emt 0:00:05] [#]} 8. h5 $146 {[%emt 0:00:08] The position is equal.} ({Predecessor:} 8. Be3 Nd4 9. Qd2 Ne7 10. O-O Rb8 11. Nd1 b5 12. Nc1 b4 13. a3 a5 14. axb4 axb4 {1-0 (41) McShane,L (2640)-Salem,A (2638) Riadh 2017}) 8... g5 {[%emt 0:00:03]} 9. f4 {[%emt 0:00:02]} gxf4 {[%emt 0:00:05]} 10. Bxf4 {[%emt 0:00:35]} Nf6 {[%emt 0:00:52][%cal Bg8f6,Bf6g4,Bg4e3][%mdl 32]} 11. Qd2 {[%emt 0:00:44]} Ng4 {[%emt 0:01:35]} 12. Rh4 $2 {[%emt 0:01:19] White does not recover from this.} (12. Bh3 $11 {and White has nothing to worry.} Nge5 13. O-O) 12... e5 $19 {[%emt 0:00:20]} 13. Be3 {[%emt 0:02:58]} Nxe3 {[%emt 0:00:22]} 14. Qxe3 {[%emt 0:00:01]} Nd4 {[%emt 0:00:08]} 15. O-O-O {[%emt 0:01:25]} Bf6 {[%emt 0:00:02]} 16. Kb1 {[%emt 0:00:08]} Bxh4 {[%emt 0:00:40]} 17. gxh4 {[%emt 0:00:01]} Bg4 {[%emt 0:01:35]} 18. Rf1 {[%emt 0:01:32]} (18. Rh1 $142) 18... Nxe2 {[%emt 0:03:05]} ({Stronger than} 18... Bxh5 19. Ng3 Bg4 20. Nd5 $15) 19. Nxe2 {[%emt 0:00:12]} Qxh4 {[%emt 0:00:13]} 20. Ng3 {[%emt 0:01:35]} Rg8 {[%emt 0:00:19]} 21. Bh1 {[%emt 0:04:16]} Qg5 {[%emt 0:00:39]} 22. Qf2 {[%emt 0:01:58]} O-O-O {[%emt 0:02:03]} 23. b4 $2 {[%emt 0:00:24]} (23. Nf5) 23... Bh3 {[%emt 0:00:32] Black is clearly winning.} 24. Rg1 {[%emt 0:00:26]} Qf4 {[%emt 0:00:18]} 25. Qe1 {[%emt 0:00:06]} Be6 {[%emt 0:00:29]} 26. bxc5 {[%emt 0:00:24]} dxc5 {[%emt 0:00:01] [#] Strongly threatening ...c4.} 27. Ne2 {[%emt 0:00:03]} Qe3 {[%emt 0:00:16]} 28. Rf1 {[%emt 0:00:13]} Bg4 {[%emt 0:00:15]} 29. Nc3 {[%emt 0:00:16]} Qxe1+ {[%emt 0:00:11]} 30. Rxe1 {[%emt 0:00:01]} Bxh5 {[%emt 0:00:13]} 31. Nd5 {[%emt 0:00:02]} Rg3 {[%emt 0:00:25]} 32. Ne7+ {[%emt 0:00:16]} Kd7 {[%emt 0:00:06]} 33. Nf5 {[%emt 0:00:01]} Rg6 {[%emt 0:00:21] [#] And now ...Rdg8 would win.} 34. Kb2 {[%emt 0:00:02]} Rdg8 {[%emt 0:00:08] Threatens to win with ...Rg1.} 35. Re3 {[%emt 0:00:01]} Bg4 {[%emt 0:00:10]} 36. Ng3 {[%emt 0:00:16]} h5 {[%emt 0:00:03][%cal Bh6h5,Bh5h4,Bh4h3][%mdl 32]} 37. Nf5 {[%emt 0:00:08]} h4 {[%emt 0:00:04]} 38. Re1 {[%emt 0:00:43]} Bxf5 {[%emt 0:00:04]} 39. exf5 {[%emt 0:00:04]} Rg1 {[%emt 0:00:01]} 40. Rxg1 {[%emt 0:00:03]} Rxg1 {[%emt 0:00:02]} 41. Bxb7 {[%emt 0:00:02]} h3 {[%emt 0:00:02] Weighted Error Value: White=0.59/Black=0.16 (very precise)} 0-1

[Event "Susha Chess Rapid Women 2022"]
[Site "Shusha"]
[Date "2022.09.23"]
[Round "6.4"]
[White "Fataliyeva, Ulviyya"]
[Black "Arabidze, Meri"]
[Result "0-1"]
[ECO "A04"]
[WhiteElo "2408"]
[BlackElo "2422"]
[Annotator "TA"]
[PlyCount "92"]
[EventDate "2022.09.21"]
[EventType "tourn"]
[EventCountry "AZE"]
[SourceTitle "playchess.com"]
[Source "ChessBase"]
[SourceQuality "1"]
[TimeControl "900+10"]

{[%evp 23,92,33,46,0,0,0,0,0,25,0,-10,-17,-10,-39,-31,-19,-23,-19,-9,-13,0,-20,-18,-24,-26,-42,-48,-53,-56,-46,0,0,-12,-97,-100,-104,-110,-100,-99,-113,-108,-106,-94,-165,-152,-264,-286,-279,-279,-297,-303,-422,-343,-475,-444,-455,-473,-461,-453,-506,-506,-566,-550,-630,-626,-29987,-29988,-29988,-29989,-29991,-29992]} 1. Nf3 {[%emt 0:00:01]} c5 {[%emt 0:00:12]} 2. c4 {[%emt 0:00:16]} Nc6 {[%emt 0:00:16]} 3. Nc3 {[%emt 0:00:04]} g6 {[%emt 0:00:06]} 4. e3 {[%emt 0:01:04]} Nf6 {[%emt 0:00:01][%cal Bg8f6,Bf6d5,Bd5c3][%mdl 32]} 5. d4 {[%emt 0:00:22]} cxd4 {[%emt 0:00:17]} 6. exd4 {[%emt 0:00:01]} d5 {[%emt 0:00:01]} 7. cxd5 {[%emt 0:00:59]} Nxd5 {[%emt 0:00:09]} 8. Qb3 {[%emt 0:00:02]} Nxc3 {[%emt 0:00:37]} 9. Bc4 {[%emt 0:00:12]} e6 {[%emt 0:00:01]} 10. bxc3 {[%emt 0:00:06]} Bg7 {[%emt 0:00:22]} 11. Ba3 {[%emt 0:00:29]} Bf8 {[%emt 0:00:09]} 12. Bxf8 {[%emt 0:02:25]} Kxf8 {[%emt 0:00:02]} 13. O-O {[%emt 0:00:02] A35: Symmetrical English: 2 Nc3 Nc6 3 Nf3.} (13. h4 $14) 13... Kg7 {[%emt 0:00:11]} 14. Qb2 {[%emt 0:01:33]} b6 {[%emt 0:01:23] [#]} 15. Rad1 $146 {[%emt 0:00:07] The position is equal.} ({Predecessor:} 15. Rae1 Bb7 16. Re3 Rc8 17. Bb3 Qf6 18. Rfe1 Rhf8 19. Qe2 Rc7 20. Rd1 Na5 21. Ne5 {½-½ (35) Ftacnik,L (2513)-Thorhallsson,S (2199) Reykjavik 2021}) 15... Qf6 {[%emt 0:01:13]} 16. Nd2 {[%emt 0:01:05]} Na5 {[%emt 0:00:46]} 17. Bd3 {[%emt 0:00:01]} Bb7 {[%emt 0:00:05]} 18. f3 {[%emt 0:00:26]} Rhd8 {[%emt 0:01:16]} 19. Ne4 {[%emt 0:00:12]} Qf4 {[%emt 0:00:03]} 20. g3 {[%emt 0:03:07]} Qe3+ {[%emt 0:02:12]} 21. Kg2 {[%emt 0:00:02]} Rac8 {[%emt 0:00:22]} 22. Rfe1 {[%emt 0:00:22]} Qh6 {[%emt 0:00:01]} 23. c4 {[%emt 0:01:10]} Bxe4 {[%emt 0:00:26]} (23... Nxc4 $2 24. Bxc4 Rxc4 25. d5+ e5 26. Qxe5+ Kg8 27. Nf6+ Kh8 28. Nh5+ Kg8 29. Nf6+ Kh8 30. d6 $18) 24. fxe4 {[%emt 0:01:58]} Kg8 {[%emt 0:01:04]} 25. d5 {[%emt 0:00:10]} Qg7 $1 {[%emt 0:00:23]} 26. Qf2 {[%emt 0:02:57]} e5 {[%emt 0:00:01]} (26... Nxc4 27. Bxc4 Rxc4 28. dxe6 $11) 27. Rc1 {[%emt 0:00:06]} Nb7 {[%emt 0:00:08] Prevents c5.} 28. Bc2 {[%emt 0:00:02]} (28. Rf1 $11 {keeps the balance.}) 28... Rxc4 $17 {[%emt 0:00:17] White is now going downhill.} 29. Bb3 {[%emt 0:00:00]} Rxc1 {[%emt 0:00:17]} 30. Rxc1 {[%emt 0:00:01]} Nc5 {[%emt 0:00:02] [#] aiming for ...Nd3.} 31. Bc2 {[%emt 0:00:36] Inhibits Nd3.} Rc8 {[%emt 0:01:20][%cal Oc5d3] And now ...Nd3! would win.} 32. Rf1 {[%emt 0:00:01]} Nb7 {[%emt 0:00:11][%cal Bc5b7,Bb7d6,Bd6e4][%mdl 32]} 33. Ba4 {[%emt 0:00:03]} (33. Bd3 $17) 33... Nd6 {[%emt 0:00:33]} 34. Bc6 {[%emt 0:00:27]} (34. Bc2 $17) 34... Nxe4 $19 {[%emt 0:00:16]} 35. Qe3 {[%emt 0:00:00]} f5 {[%emt 0:00:29][%cal Bf7f5,Bf5f4,Bf4f3,Bf3f2][%mdl 32]} 36. Qa3 {[%emt 0:00:01]} Rd8 {[%emt 0:00:44]} 37. g4 {[%emt 0:00:30]} Kh8 {[%emt 0:01:05]} 38. Qh3 {[%emt 0:00:13]} Nd6 {[%emt 0:00:37]} 39. Kh1 {[%emt 0:00:08]} f4 {[%emt 0:00:11]} 40. g5 {[%emt 0:00:02]} Nf5 {[%emt 0:00:26]} 41. Rc1 {[%emt 0:00:09]} Qe7 {[%emt 0:00:23]} 42. Qc3 {[%emt 0:00:14]} Nd4 {[%emt 0:00:20]} 43. Re1 {[%emt 0:00:02] Inhibits Ne2.} Qxg5 {[%emt 0:00:12] [#] Strongly threatening ...f3.} 44. Re4 {[%emt 0:00:26]} f3 {[%emt 0:00:15][%csl Gf3][%cal Rg5g2] Black mates.} 45. Qb2 {[%emt 0:00:05]} Qf5 {[%emt 0:00:51]} 46. Rxd4 {[%emt 0:00:13]} f2 {[%emt 0:00:11] Weighted Error Value: White=0.47/Black=0.07 (flawless)} 0-1

[Event "Susha Chess Rapid Women 2022"]
[Site "Shusha"]
[Date "2022.09.23"]
[Round "6.5"]
[White "Balajayeva, Khanim"]
[Black "Mammadova, Gulnar"]
[Result "1/2-1/2"]
[ECO "C01"]
[WhiteElo "2379"]
[BlackElo "2382"]
[Annotator "TA"]
[PlyCount "55"]
[EventDate "2022.09.21"]
[EventType "tourn"]
[EventCountry "AZE"]
[SourceTitle "playchess.com"]
[Source "ChessBase"]
[SourceQuality "1"]
[TimeControl "900+10"]

{[%evp 25,35,0,0,0,0,0,-4,0,-4,-6,6,6]} 1. e4 {[%emt 0:00:04]} e6 {[%emt 0:00:02]} 2. d4 {[%emt 0:00:02]} d5 {[%emt 0:00:04]} 3. exd5 {[%emt 0:00:22]} exd5 {[%emt 0:00:06]} 4. Nf3 {[%emt 0:00:12]} Nf6 {[%emt 0:00:31]} 5. Bd3 {[%emt 0:00:34]} Bd6 {[%emt 0:00:20]} 6. O-O {[%emt 0:00:43]} O-O {[%emt 0:00:22]} 7. c3 {[%emt 0:00:50]} c6 {[%emt 0:00:57]} 8. Bg5 {[%emt 0:00:31]} Bg4 {[%emt 0:00:43]} 9. Nbd2 {[%emt 0:00:34]} Nbd7 {[%emt 0:00:08]} 10. Qc2 {[%emt 0:00:36]} Qc7 11. h3 {[%emt 0:00:18]} Bh5 {[%emt 0:00:55]} 12. Rfe1 {[%emt 0:00:40]} Rfe8 {[%emt 0:00:30]} 13. Rxe8+ {[%emt 0:01:14]} Rxe8 {[%emt 0:00:04] The position is equal.} 14. Re1 {[%emt 0:00:08] C01: French: Exchange Variation.} Rxe1+ {[%emt 0:00:09]} 15. Nxe1 {[%emt 0:00:02]} Bg6 {[%emt 0:00:42]} 16. Bxg6 {[%emt 0:00:47]} hxg6 {[%emt 0:00:02]} 17. Nef3 {[%emt 0:00:43]} Bf4 {[%emt 0:00:31]} 18. Bxf4 {[%emt 0:00:19] [#] Not much happened in this game.  Weighted Error Value: White=0.00 (flawless) /Black=0.03 (flawless)} {Predecessor:} Qxf4 $146 19. Qa4 a6 20. Qb4 Ne4 21. Qxb7 Nxd2 22. Nxd2 Qxd2 23. Qxd7 Qc1+ 24. Kh2 Qf4+ 25. Kh1 Qc1+ 26. Kh2 Qf4+ 27. Kg1 Qc1+ 28. Kh2 {½-½ (30) Bordi,K (2288)-Song,M (2424) Chess.com INT 2022} 1/2-1/2